fUST/lending_fUST_20241016
["ID","MTS","AMOUNT","RATE_DAILY","PERIOD"]
[340342906,1729078305006,-151.0,0.00020377,2]
[340342907,1729078305016,-356.194987,0.00020377,2]
[340342908,1729078305025,-356.194987,0.00020377,2]
[340342909,1729078305034,-151.0,0.00020437,2]
[340342910,1729078305043,-151.0,0.00020437,2]
[340342911,1729078305053,-151.0,0.00020437,2]
[340342912,1729078305062,-151.0,0.00020437,2]
[340342913,1729078305071,-156.8017,0.00020437,2]
[340342914,1729078305081,-156.8017,0.00020437,2]
[340342915,1729078305090,-151.0,0.00020437,2]
[340342916,1729078305099,-151.0,0.00020437,2]
[340342917,1729078305109,-5754.67116334,0.00020437,3]
[340342918,1729078305119,-20331.309072,0.00020437,3]
[340342919,1729078305131,-228.04574162,0.00020446,2]
[340342920,1729078305144,-5754.67116334,0.00020447,3]
[340342921,1729078305153,-20331.309072,0.00020447,3]
[340342922,1729078305163,-5754.67116334,0.00020447,3]
[340342923,1729078305173,-20331.309072,0.00020447,3]
[340342924,1729078305182,-151.0,0.00020447,2]
[340342925,1729078305191,-151.0,0.00020447,2]
[340342926,1729078305200,-288.038672,0.00020447,2]
[340342927,1729078305209,-288.038672,0.00020447,2]
[340342928,1729078305226,-151.0,0.00020447,2]
[340342929,1729078305236,-151.0,0.00020447,2]
[340342930,1729078305245,-151.0,0.00020447,2]
[340342931,1729078305254,-151.0,0.00020447,2]
[340342932,1729078305263,-156.8017,0.00020447,2]
[340342933,1729078305273,-156.8017,0.00020447,2]
[340342934,1729078305282,-151.0,0.00020447,2]
[340342935,1729078305292,-151.0,0.00020447,2]
[340342936,1729078305301,-151.0,0.00020447,2]
[340342937,1729078305310,-544.848496,0.00020447,2]
[340342938,1729078305319,-205.073225,0.00020447,2]
[340342939,1729078305329,-544.848496,0.00020447,2]
[340342940,1729078305338,-205.073225,0.00020447,2]
[340342941,1729078305348,-151.0,0.00020447,2]
[340342942,1729078305358,-321.036136,0.00020447,2]
[340342943,1729078305368,-1090.612908,0.00020447,2]
[340342944,1729078305379,-321.036136,0.00020447,2]
[340342945,1729078305388,-1090.612908,0.00020447,2]
[340342946,1729078305398,-2476.359895,0.00020447,2]
[340342947,1729078305409,-2476.359895,0.00020447,2]
[340342948,1729078305418,-282.469793,0.00020447,2]
[340342949,1729078305427,-282.469793,0.00020447,2]
[340342950,1729078305437,-162.123591,0.00020447,2]
[340342951,1729078305447,-151.0,0.00020447,2]
[340342952,1729078305456,-162.123591,0.00020447,2]
[340342953,1729078305469,-190.12835,0.00020447,2]
[340342954,1729078305479,-190.12835,0.00020447,2]
[340342955,1729078305488,-8508.779417,0.00020447,2]
[340342956,1729078305498,-8508.779417,0.00020447,2]
[340342957,1729078305507,-449.154817,0.00020447,2]
[340342958,1729078305516,-151.0,0.00020447,2]
[340342959,1729078305525,-449.154817,0.00020447,2]
[340342960,1729078305535,-156.221547,0.00020447,2]
[340342961,1729078305545,-237.09666,0.00020447,2]
[340342962,1729078305554,-237.09666,0.00020447,2]
[340342963,1729078305564,-151.0,0.00020447,2]
[340342964,1729078305575,-151.0,0.00020447,2]
[340342965,1729078305584,-151.0,0.00020447,2]
[340342966,1729078305594,-151.0,0.00020447,2]
[340342967,1729078305604,-151.0,0.00020447,2]
[340342968,1729078305614,-151.0,0.00020447,2]
[340342969,1729078305624,-177.664758,0.00020447,2]
[340342970,1729078305634,-356.194987,0.00020447,2]
[340342971,1729078305643,-356.194987,0.00020447,2]
[340342972,1729078305723,-356.194987,0.00020447,2]
[340342973,1729078305732,-356.194987,0.00020447,2]
[340342974,1729078305742,-35976.44969626,0.00020457,3]
[340342975,1729078305751,-151.0,0.00020457,2]
[340342976,1729078305761,-151.0,0.00020457,2]
[340342977,1729078305770,-288.038672,0.00020457,2]
[340342978,1729078305779,-288.038672,0.00020457,2]
[340342979,1729078305788,-151.0,0.00020457,2]
[340342980,1729078305796,-151.0,0.00020457,2]
[340342981,1729078305806,-151.0,0.00020457,2]
[340342982,1729078305814,-151.0,0.00020457,2]
[340342983,1729078305824,-294.823092,0.00020457,2]
[340342984,1729078305833,-151.0,0.00020457,2]
[340342985,1729078305842,-156.8017,0.00020457,2]
[340342986,1729078305851,-156.8017,0.00020457,2]
[340342987,1729078305860,-156.8017,0.00020457,2]
[340342988,1729078305869,-156.8017,0.00020457,2]
[340342989,1729078305879,-151.0,0.00020457,2]
[340342990,1729078305888,-151.0,0.00020457,2]
[340342991,1729078305897,-1000.0,0.00020457,2]
[340342992,1729078305907,-1000.0,0.00020457,2]
[340342993,1729078305917,-1000.0,0.00020457,2]
[340342994,1729078305926,-1000.0,0.00020457,2]
[340342995,1729078305935,-1000.0,0.00020457,2]
[340342996,1729078305945,-1000.0,0.00020457,2]
[340342997,1729078305954,-1000.0,0.00020457,2]
[340342998,1729078305964,-1000.0,0.00020457,2]
[340342999,1729078305976,-1000.0,0.00020457,2]
[340343000,1729078305985,-1000.0,0.00020457,2]
[340343001,1729078305995,-1000.0,0.00020457,2]
[340343002,1729078306004,-1000.0,0.00020457,2]
[340343003,1729078306013,-151.0,0.00020457,2]
[340343004,1729078306023,-151.0,0.00020457,2]
[340343005,1729078306033,-151.0,0.00020457,2]
[340343006,1729078306044,-151.0,0.00020457,2]
[340343007,1729078306054,-473.984542,0.00020457,2]
[340343008,1729078306064,-151.0,0.00020457,2]
[340343009,1729078306074,-473.984542,0.00020457,2]
[340343010,1729078306084,-151.0,0.00020457,2]
[340343011,1729078306093,-512.850308,0.00020457,2]
[340343012,1729078306102,-512.850308,0.00020457,2]
[340343013,1729078306112,-151.0,0.00020457,2]
[340343014,1729078306126,-151.0,0.00020457,2]
[340343015,1729078306135,-361.861888,0.00020457,2]
[340343016,1729078306145,-544.848496,0.00020457,2]
[340343017,1729078306154,-544.848496,0.00020457,2]
[340343018,1729078306165,-361.861888,0.00020457,2]
[340343019,1729078306176,-205.073225,0.00020457,2]
[340343020,1729078306186,-205.073225,0.00020457,2]
[340343021,1729078306198,-544.848496,0.00020457,2]
[340343022,1729078306208,-544.848496,0.00020457,2]
[340343023,1729078306218,-205.073225,0.00020457,2]
[340343024,1729078306228,-205.073225,0.00020457,2]
[340343025,1729078306238,-151.0,0.00020457,2]
[340343026,1729078306248,-151.0,0.00020457,2]
[340343027,1729078306258,-321.036136,0.00020457,2]
[340343028,1729078306268,-321.036136,0.00020457,2]
[340343029,1729078306279,-321.036136,0.00020457,2]
[340343030,1729078306288,-1090.612908,0.00020457,2]
[340343031,1729078306297,-1090.612908,0.00020457,2]
[340343032,1729078306307,-321.036136,0.00020457,2]
[340343033,1729078306318,-321.036136,0.00020457,2]
[340343034,1729078306328,-321.036136,0.00020457,2]
[340343035,1729078306338,-1090.612908,0.00020457,2]
[340343036,1729078306348,-1090.612908,0.00020457,2]
[340343037,1729078306357,-2476.359895,0.00020457,2]
[340343038,1729078306366,-2476.359895,0.00020457,2]
[340343039,1729078306376,-2476.359895,0.00020457,2]
[340343040,1729078306385,-2476.359895,0.00020457,2]
[340343041,1729078306395,-282.469793,0.00020457,2]
[340343042,1729078306406,-282.469793,0.00020457,2]
[340343043,1729078306416,-282.469793,0.00020457,2]
[340343044,1729078306425,-282.469793,0.00020457,2]
[340343045,1729078306435,-282.469793,0.00020457,2]
[340343046,1729078306444,-282.469793,0.00020457,2]
[340343047,1729078306453,-162.123591,0.00020457,2]
[340343048,1729078306463,-162.123591,0.00020457,2]
[340343049,1729078306474,-162.123591,0.00020457,2]
[340343050,1729078306483,-228.025275,0.00020457,2]
[340343051,1729078306493,-162.123591,0.00020457,2]
[340343052,1729078306503,-162.123591,0.00020457,2]
[340343053,1729078306512,-162.123591,0.00020457,2]
[340343054,1729078306521,-190.12835,0.00020457,2]
[340343055,1729078306530,-190.12835,0.00020457,2]
[340343056,1729078306539,-190.12835,0.00020457,2]
[340343057,1729078306549,-190.12835,0.00020457,2]
[340343058,1729078306558,-190.12835,0.00020457,2]
[340343059,1729078306568,-190.12835,0.00020457,2]
[340343060,1729078306577,-8508.779417,0.00020457,2]
[340343061,1729078306586,-8508.779417,0.00020457,2]
[340343062,1729078306597,-8508.779417,0.00020457,2]
[340343063,1729078306607,-8508.779417,0.00020457,2]
[340343064,1729078306616,-8508.779417,0.00020457,2]
[340343065,1729078306625,-8508.779417,0.00020457,2]
[340343066,1729078306635,-449.154817,0.00020457,2]
[340343067,1729078306644,-151.0,0.00020457,2]
[340343068,1729078306654,-151.0,0.00020457,2]
[340343069,1729078306663,-151.0,0.00020457,2]
[340343070,1729078306673,-449.154817,0.00020457,2]
[340343071,1729078306682,-151.0,0.00020457,2]
[340343072,1729078306691,-449.154817,0.00020457,2]
[340343073,1729078306703,-151.0,0.00020457,2]
[340343074,1729078306712,-151.0,0.00020457,2]
[340343075,1729078306724,-449.154817,0.00020457,2]
[340343076,1729078306733,-449.154817,0.00020457,2]
[340343077,1729078306742,-449.154817,0.00020457,2]
[340343078,1729078306752,-510.0,0.00020457,2]
[340343079,1729078306762,-237.09666,0.00020457,2]
[340343080,1729078306772,-237.09666,0.00020457,2]
[340343081,1729078306782,-237.09666,0.00020457,2]
[340343082,1729078306792,-237.09666,0.00020457,2]
[340343083,1729078306802,-237.09666,0.00020457,2]
[340343084,1729078306811,-237.09666,0.00020457,2]
[340343085,1729078306821,-500.596637,0.00020457,2]
[340343086,1729078306831,-500.596637,0.00020457,2]
[340343087,1729078306841,-500.596637,0.00020457,2]
[340343088,1729078306850,-500.596637,0.00020457,2]
[340343089,1729078306860,-500.596637,0.00020457,2]
[340343090,1729078306870,-500.596637,0.00020457,2]
[340343091,1729078306880,-153.231814,0.00020457,2]
[340343092,1729078306889,-337.529043,0.00020457,2]
[340343093,1729078306899,-153.231814,0.00020457,2]
[340343094,1729078306908,-153.231814,0.00020457,2]
[340343095,1729078306918,-337.529043,0.00020457,2]
[340343096,1729078306928,-337.529043,0.00020457,2]
[340343097,1729078306937,-337.529043,0.00020457,2]
[340343098,1729078306947,-337.529043,0.00020457,2]
[340343099,1729078306957,-153.231814,0.00020457,2]
[340343100,1729078306967,-153.231814,0.00020457,2]
[340343101,1729078306980,-153.231814,0.00020457,2]
[340343102,1729078306989,-337.529043,0.00020457,2]
[340343103,1729078306998,-821.78498,0.00020457,2]
[340343104,1729078307008,-821.78498,0.00020457,2]
[340343105,1729078307018,-821.78498,0.00020457,2]
[340343106,1729078307027,-151.0,0.00020457,2]
[340343107,1729078307037,-151.0,0.00020457,2]
[340343108,1729078307046,-151.0,0.00020457,2]
[340343109,1729078307055,-151.0,0.00020457,2]
[340343110,1729078307064,-151.0,0.00020457,2]
[340343111,1729078307075,-151.0,0.00020457,2]
[340343112,1729078307084,-821.78498,0.00020457,2]
[340343113,1729078307094,-821.78498,0.00020457,2]
[340343114,1729078307104,-151.0,0.00020457,2]
[340343115,1729078307113,-821.78498,0.00020457,2]
[340343116,1729078307122,-151.0,0.00020457,2]
[340343117,1729078307135,-151.0,0.00020457,2]
[340343118,1729078307144,-151.0,0.00020457,2]
[340343119,1729078307153,-151.0,0.00020457,2]
[340343120,1729078307163,-151.0,0.00020457,2]
[340343121,1729078307173,-356.194987,0.00020457,2]
[340343122,1729078307183,-356.194987,0.00020457,2]
[340343123,1729078307192,-356.194987,0.00020457,2]
[340343124,1729078307203,-356.194987,0.00020457,2]
[340343125,1729078307212,-356.194987,0.00020457,2]
[340343126,1729078307226,-356.194987,0.00020457,2]
[340343127,1729078307236,-157.75094807,0.00020489,2]
[340343128,1729078307245,-151.0,0.0002058,2]
[340343129,1729078307255,-151.0,0.0002058,2]
[340343130,1729078307265,-151.0,0.0002058,2]
[340343131,1729078307275,-356.194987,0.0002058,2]
[340343132,1729078307285,-356.194987,0.0002058,2]
[340343133,1729078307294,-5754.67116334,0.0002058,3]
[340343134,1729078307304,-20331.309072,0.0002058,3]
[340343135,1729078307313,-151.0,0.0002059,2]
[340343136,1729078307322,-151.0,0.0002059,2]
[340343137,1729078307333,-156.8017,0.0002059,2]
[340343138,1729078307342,-156.8017,0.0002059,2]
[340343139,1729078307351,-151.0,0.0002059,2]
[340343140,1729078307361,-151.0,0.0002059,2]
[340343141,1729078307371,-151.0,0.0002059,2]
[340343142,1729078307380,-151.0,0.0002059,2]
[340343143,1729078307391,-473.984542,0.0002059,2]
[340343144,1729078307400,-151.0,0.0002059,2]
[340343145,1729078307410,-473.984542,0.0002059,2]
[340343146,1729078307419,-151.0,0.0002059,2]
[340343147,1729078307429,-512.850308,0.0002059,2]
[340343148,1729078307438,-512.850308,0.0002059,2]
[340343149,1729078307448,-151.0,0.0002059,2]
[340343150,1729078307458,-361.861888,0.0002059,2]
[340343151,1729078307467,-544.848496,0.0002059,2]
[340343152,1729078307479,-361.861888,0.0002059,2]
[340343153,1729078307489,-205.073225,0.0002059,2]
[340343154,1729078307499,-544.848496,0.0002059,2]
[340343155,1729078307509,-205.073225,0.0002059,2]
[340343156,1729078307519,-151.0,0.0002059,2]
[340343157,1729078307528,-321.036136,0.0002059,2]
[340343158,1729078307538,-1090.612908,0.0002059,2]
[340343159,1729078307549,-321.036136,0.0002059,2]
[340343160,1729078307559,-1090.612908,0.0002059,2]
[340343161,1729078307568,-2476.359895,0.0002059,2]
[340343162,1729078307578,-2476.359895,0.0002059,2]
[340343163,1729078307588,-282.469793,0.0002059,2]
[340343164,1729078307597,-282.469793,0.0002059,2]
[340343165,1729078307607,-162.123591,0.0002059,2]
[340343166,1729078307617,-162.123591,0.0002059,2]
[340343167,1729078307628,-190.12835,0.0002059,2]
[340343168,1729078307638,-190.12835,0.0002059,2]
[340343169,1729078307647,-8508.779417,0.0002059,2]
[340343170,1729078307657,-8508.779417,0.0002059,2]
[340343171,1729078307667,-5754.67116334,0.0002059,3]
[340343172,1729078307677,-20331.309072,0.0002059,3]
[340343173,1729078307687,-151.0,0.0002059,2]
[340343174,1729078307696,-449.154817,0.0002059,2]
[340343175,1729078307705,-449.154817,0.0002059,2]
[340343176,1729078307715,-237.09666,0.0002059,2]
[340343177,1729078307728,-237.09666,0.0002059,2]
[340343178,1729078307737,-151.0,0.0002059,2]
[340343179,1729078307746,-151.0,0.0002059,2]
[340343180,1729078307756,-151.0,0.0002059,2]
[340343181,1729078307766,-356.194987,0.0002059,2]
[340343182,1729078307775,-356.194987,0.0002059,2]
[340343183,1729078307785,-184.0,0.000206,2]
[340343184,1729078307795,-511.0,0.000206,2]
[340343185,1729078307806,-151.0,0.000206,2]
[340343186,1729078307817,-155.571212,0.000206,2]
[340343187,1729078307828,-151.0,0.000206,2]
[340343188,1729078307838,-151.0,0.000206,2]
[340343189,1729078307848,-161.147971,0.000206,2]
[340343190,1729078307860,-161.147971,0.000206,2]
[340343191,1729078307870,-151.0,0.000206,2]
[340343192,1729078307880,-151.0,0.000206,2]
[340343193,1729078307889,-183.959577,0.000206,2]
[340343194,1729078307898,-288.038672,0.000206,2]
[340343195,1729078307908,-288.038672,0.000206,2]
[340343196,1729078307918,-151.0,0.000206,2]
[340343197,1729078307928,-151.0,0.000206,2]
[340343198,1729078307937,-156.8017,0.000206,2]
[340343199,1729078307947,-156.8017,0.000206,2]
[340343200,1729078307956,-151.0,0.000206,2]
[340343201,1729078307966,-151.0,0.000206,2]
[340343202,1729078307977,-151.0,0.000206,2]
[340343203,1729078307987,-151.0,0.000206,2]
[340343204,1729078307997,-151.0,0.000206,2]
[340343205,1729078308007,-473.984542,0.000206,2]
[340343206,1729078308017,-151.0,0.000206,2]
[340343207,1729078308026,-473.984542,0.000206,2]
[340343208,1729078308036,-151.0,0.000206,2]
[340343209,1729078308047,-512.850308,0.000206,2]
[340343210,1729078308056,-512.850308,0.000206,2]
[340343211,1729078308067,-151.0,0.000206,2]
[340343212,1729078308078,-151.0,0.000206,2]
[340343213,1729078308091,-361.861888,0.000206,2]
[340343214,1729078308102,-544.848496,0.000206,2]
[340343215,1729078308111,-544.848496,0.000206,2]
[340343216,1729078308126,-361.861888,0.000206,2]
[340343217,1729078308135,-205.073225,0.000206,2]
[340343218,1729078308145,-205.073225,0.000206,2]
[340343219,1729078308155,-544.848496,0.000206,2]
[340343220,1729078308166,-544.848496,0.000206,2]
[340343221,1729078308176,-205.073225,0.000206,2]
[340343222,1729078308186,-205.073225,0.000206,2]
[340343223,1729078308197,-321.036136,0.000206,2]
[340343224,1729078308207,-321.036136,0.000206,2]
[340343225,1729078308217,-1090.612908,0.000206,2]
[340343226,1729078308231,-1090.612908,0.000206,2]
[340343227,1729078308241,-321.036136,0.000206,2]
[340343228,1729078308251,-321.036136,0.000206,2]
[340343229,1729078308262,-1090.612908,0.000206,2]
[340343230,1729078308271,-1090.612908,0.000206,2]
[340343231,1729078308280,-2476.359895,0.000206,2]
[340343232,1729078308290,-2476.359895,0.000206,2]
[340343233,1729078308301,-2476.359895,0.000206,2]
[340343234,1729078308313,-2476.359895,0.000206,2]
[340343235,1729078308324,-282.469793,0.000206,2]
[340343236,1729078308335,-282.469793,0.000206,2]
[340343237,1729078308346,-282.469793,0.000206,2]
[340343238,1729078308356,-282.469793,0.000206,2]
[340343239,1729078308366,-162.123591,0.000206,2]
[340343240,1729078308376,-162.123591,0.000206,2]
[340343241,1729078308387,-190.12835,0.000206,2]
[340343242,1729078308397,-190.12835,0.000206,2]
[340343243,1729078308407,-190.12835,0.000206,2]
[340343244,1729078308417,-190.12835,0.000206,2]
[340343245,1729078308427,-8508.779417,0.000206,2]
[340343246,1729078308438,-8508.779417,0.000206,2]
[340343247,1729078308449,-151.0,0.000206,2]
[340343248,1729078308460,-151.0,0.000206,2]
[340343249,1729078308471,-449.154817,0.000206,2]
[340343250,1729078308481,-449.154817,0.000206,2]
[340343251,1729078308492,-449.154817,0.000206,2]
[340343252,1729078308502,-449.154817,0.000206,2]
[340343253,1729078308522,-237.09666,0.000206,2]
[340343254,1729078308536,-237.09666,0.000206,2]
[340343255,1729078308549,-500.596637,0.000206,2]
[340343256,1729078308561,-500.596637,0.000206,2]
[340343257,1729078308572,-337.529043,0.000206,2]
[340343258,1729078308583,-153.231814,0.000206,2]
[340343259,1729078308594,-153.231814,0.000206,2]
[340343260,1729078308605,-337.529043,0.000206,2]
[340343261,1729078308616,-821.78498,0.000206,2]
[340343262,1729078308627,-151.0,0.000206,2]
[340343263,1729078308638,-151.0,0.000206,2]
[340343264,1729078308650,-821.78498,0.000206,2]
[340343265,1729078308661,-151.0,0.000206,2]
[340343266,1729078308672,-151.0,0.000206,2]
[340343267,1729078308683,-267.211372,0.000206,2]
[340343268,1729078308695,-151.0,0.000206,2]
[340343269,1729078308706,-356.194987,0.000206,2]
[340343270,1729078308718,-356.194987,0.000206,2]
[340343271,1729078308730,-356.194987,0.000206,2]
[340343272,1729078308741,-356.194982,0.000206,2]
[340343273,1729078308753,-5754.67116334,0.000206,3]
[340343274,1729078308764,-20331.309072,0.000206,3]
[340343275,1729078308776,-3169.74839093,0.00020606,2]
[340343276,1729078308788,-14764.73192865,0.0002061,2]
[340343277,1729078309011,-288.038672,0.0002061,2]
[340343278,1729078309021,-288.038672,0.0002061,2]
[340343279,1729078309031,-151.0,0.0002061,2]
[340343280,1729078309040,-151.0,0.0002061,2]
[340343281,1729078309050,-473.984542,0.0002061,2]
[340343282,1729078309066,-473.984542,0.0002061,2]
[340343283,1729078309076,-151.0,0.0002061,2]
[340343284,1729078309087,-512.850308,0.0002061,2]
[340343285,1729078309098,-512.850308,0.0002061,2]
[340343286,1729078309109,-151.0,0.0002061,2]
[340343287,1729078309120,-361.861888,0.0002061,2]
[340343288,1729078309134,-544.848496,0.0002061,2]
[340343289,1729078309145,-361.861888,0.0002061,2]
[340343290,1729078309155,-205.073225,0.0002061,2]
[340343291,1729078309167,-544.848496,0.0002061,2]
[340343292,1729078309177,-205.073225,0.0002061,2]
[340343293,1729078309189,-1090.612908,0.0002061,2]
[340343294,1729078309202,-1090.612908,0.0002061,2]
[340343295,1729078309213,-2476.359895,0.0002061,2]
[340343296,1729078309224,-2476.359895,0.0002061,2]
[340343297,1729078309235,-162.123591,0.0002061,2]
[340343298,1729078309245,-162.123591,0.0002061,2]
[340343299,1729078309256,-8508.779417,0.0002061,2]
[340343300,1729078309266,-8508.779417,0.0002061,2]
[340343301,1729078309278,-151.0,0.0002061,2]
[340343302,1729078309289,-151.0,0.0002061,2]
[340343303,1729078309302,-237.09666,0.0002061,2]
[340343304,1729078309313,-237.09666,0.0002061,2]
[340343305,1729078309325,-500.596637,0.0002061,2]
[340343306,1729078309336,-500.596637,0.0002061,2]
[340343307,1729078309347,-337.529043,0.0002061,2]
[340343308,1729078309359,-153.231814,0.0002061,2]
[340343309,1729078309369,-153.231814,0.0002061,2]
[340343310,1729078309380,-337.529043,0.0002061,2]
[340343311,1729078309390,-821.78498,0.0002061,2]
[340343312,1729078309401,-821.78498,0.0002061,2]
[340343313,1729078309411,-151.0,0.0002061,2]
[340343314,1729078309422,-150.112233,0.000207,5]
[340343315,1729078309432,-150.0,0.000207,2]
[340343316,1729078309442,-157.75094807,0.000207,2]
[340343317,1729078309451,-500.0,0.00020714,2]
[340343318,1729078309462,-500.0,0.00020714,2]
[340343319,1729078309478,-500.0,0.00020714,2]
[340343320,1729078309493,-500.0,0.00020714,2]
[340343321,1729078309503,-500.0,0.00020714,2]
[340343322,1729078309513,-1000.0,0.00020742,2]
[340343323,1729078309523,-1000.0,0.00020742,2]
[340343324,1729078309532,-1000.0,0.00020742,2]
[340343325,1729078309543,-1000.0,0.00020742,2]
[340343326,1729078309553,-1000.0,0.00020742,2]
[340343327,1729078309564,-642.4459708,0.00020754,2]
[340343328,1729078309574,-500.0,0.00020759,2]
[340343329,1729078309584,-500.0,0.00020759,2]
[340343330,1729078309594,-502.6385532,0.00020779,2]
[340343331,1729078309604,-500.0,0.00020779,2]
[340343332,1729078309615,-399.93411039,0.00020779,2]
[340343333,1729078309625,-500.0,0.00020779,2]
[340343334,1729078309635,-500.0,0.00020779,2]
[340343335,1729078309645,-1500.0,0.00020782,2]
[340343336,1729078309655,-1500.0,0.00020782,2]
[340343337,1729078309665,-1500.0,0.00020782,2]
[340343338,1729078309676,-379.50755434,0.00020782,2]
[340343339,1729078309690,-1500.0,0.00020782,2]
[340343340,1729078309700,-1000.0,0.00020786,2]
[340343341,1729078309711,-555.60322184,0.00020786,2]
[340343342,1729078309727,-321.036136,0.00020794,2]
[340343343,1729078309738,-321.036136,0.00020794,2]
[340343344,1729078309749,-282.469793,0.00020794,2]
[340343345,1729078309759,-282.469793,0.00020794,2]
[340343346,1729078309770,-190.12835,0.00020794,2]
[340343347,1729078309779,-190.12835,0.00020794,2]
[340343348,1729078309790,-449.154817,0.00020794,2]
[340343349,1729078309801,-449.154817,0.00020794,2]
[340343350,1729078309810,-504.19331748,0.00020794,2]
[340343351,1729078309820,-500.0,0.00020794,2]
[340343352,1729078309831,-150.112233,0.000208,3]
[340343353,1729078309841,-150.112233,0.000208,5]
[340343354,1729078309851,-1000.0,0.00020806,2]
[340343355,1729078309861,-1000.0,0.00020806,2]
[340343356,1729078309871,-1000.0,0.00020806,2]
[340343357,1729078309881,-1000.0,0.00020822,2]
[340343358,1729078309891,-500.596637,0.00020826,2]
[340343359,1729078309901,-500.596637,0.00020826,2]
[340343360,1729078309911,-337.529043,0.00020826,2]
[340343361,1729078309920,-153.231814,0.00020826,2]
[340343362,1729078309931,-153.231814,0.00020826,2]
[340343363,1729078309941,-337.529043,0.00020826,2]
[340343364,1729078309951,-821.78498,0.00020826,2]
[340343365,1729078309961,-821.78498,0.00020826,2]
[340343366,1729078309975,-293.56288,0.00020826,2]
[340343367,1729078309985,-1500.0,0.00020826,2]
[340343368,1729078309996,-500.0,0.00020827,2]
[340343369,1729078310006,-1508.75129506,0.00020829,2]
[340343370,1729078310016,-2000.0,0.00020829,2]
[340343371,1729078310026,-2000.0,0.00020829,2]
[340343372,1729078310035,-1817.39850195,0.00020829,2]
[340343373,1729078310045,-11509.3423267,0.00020835,3]
[340343374,1729078310055,-25323.76140891,0.00020835,3]
[340343449,1729079134995,737.0,0.00027,60]
[340343568,1729079438958,-150.0,0.0002,3]
[340343570,1729079438968,-150.0,0.0002,4]
[340343572,1729079438979,-300.0,0.00020037,2]
[340343575,1729079438992,-300.0,0.00020037,2]
[340343577,1729079439006,-69.19392819,0.00020038,2]
[340344365,1729079446803,-80.80607181,0.00020038,2]
[340344367,1729079446814,-527.0,0.00020038,2]
[340344370,1729079446824,-1157.0,0.00020038,2]
[340344372,1729079446837,-1806.0,0.00020038,2]
[340344374,1729079446847,-150.0,0.00020038,2]
[340344376,1729079446857,-150.0,0.00020038,2]
[340344378,1729079446868,-150.0,0.00020038,2]
[340344380,1729079446879,-500.0,0.00020303,2]
[340344383,1729079446889,-150.62072916,0.00020351,2]
[340344385,1729079446900,-4972.04893868,0.00020486,2]
[340344387,1729079446911,-150.0,0.000207,2]
[340344389,1729079446922,-150.0,0.000207,3]
[340344391,1729079446932,-619.0,0.000207,2]
[340344393,1729079446942,-4972.04893869,0.0002076,2]
[340344395,1729079446953,-162.965,0.00020779,2]
[340344398,1729079446964,-917.28615704,0.00020835,3]
[340344400,1729079446975,-10363.2846361,0.00020835,3]
[340344402,1729079446985,-200.19072359,0.00020845,2]
[340344404,1729079446998,-38669.53612618,0.00020845,2]
[340344414,1729079447080,-40540.25587979,0.00020845,2]
[340348742,1729080632493,-300.0,0.00019177,2]
[340348744,1729080632504,-100.0,0.00019177,2]
[340348845,1729080637652,150.0,0.00027,60]
[340348875,1729080640645,-200.0,0.00019177,2]
[340348876,1729080640654,-153.0,0.00019178,2]